Cogmind - Beta 13 @@@ ROGUE MODE // 2024.07.06 @ 22:45:56 Player: Bean Result: Destroyed by G-34 Mercenary with Small Laser Performance ------------- Evolutions (1) 500 Regions Visited (2) 400 Robots Destroyed (2) 10 Value Destroyed (110) 110 Prototype IDs (0) 0 Alien Tech Used (0) 0 Bonus (0) 0 TOTAL SCORE: 1020 Bonus ------- None Cogmind --------- Core Integrity 0/400 Matter 300/300 Energy 99/100 System Corruption 0% Temperature Cool (6) Movement Core (50) Location -9/Materials Parts ------- > --- POWER (1) -------- (None) > --- PROPULSION (2) --- (None) > --- UTILITY (4) ------ (None) > --- WEAPON (2) ------- (None) > --- INVENTORY (5) ---- Ion Engine Shield Generator Light Assault Rifle Light Cannon Grenade Launcher Peak State ------------ > --- POWER ------------ Ion Engine > --- PROPULSION ------- Aluminum Leg Aluminum Leg > --- UTILITY ---------- Small Storage Unit Hacking Suite > --- WEAPON ----------- Medium Laser Small Laser > --- INVENTORY -------- Ion Engine Light Assault Rifle Grenade Launcher [Rating: 9] Favorites ----------- Power Ion Engine Engine Ion Engine Propulsion Aluminum Leg Leg Aluminum Leg Utility Small Storage Unit Storage Small Storage Unit Hackware Hacking Suite Weapon Medium Laser Energy Gun Medium Laser Build | -11 -10 -9 ------- Run | Yrd Mat Mat Slots Evolved 2 | . . 2 Power . | . . . Propulsion . | . . . Utility 2 | . . 2 Weapon . | . . . Parts Attached 7 | 6 1 . Power 1 | 1 . . Engine 1 | 1 . . Core . | . . . Reactor . | . . . Propulsion 2 | 2 . . Treads . | . . . Leg 2 | 2 . . Wheel . | . . . Hover . | . . . Flight . | . . . Utility 2 | 1 1 . Device . | . . . Storage 1 | 1 . . Processor . | . . . Hackware 1 | . 1 . Protection . | . . . Artifact . | . . . Weapon 2 | 2 . . Energy Gun 2 | 2 . . Energy Cannon . | . . . Ballistic Gun . | . . . Ballistic Cannon . | . . . Launcher . | . . . Special Weapon . | . . . Impact Weapon . | . . . Slashing Weapon . | . . . Piercing Weapon . | . . . Special Melee Weapon . | . . . Unidentified Prototypes . | . . . Parts Lost 6 | . . 6 Power 1 | . . 1 Propulsion 2 | . . 2 Utility 1 | . . 1 Weapon 2 | . . 2 Highest Loss Streak 5 | . . 5 To Critical Strikes . | . . . Average Slot Usage (%) 66 | . 88 59 Engine 9 | . 14 8 Leg 19 | . 28 16 Storage 9 | . 14 8 Hackware 8 | . 3 9 Energy Gun 19 | . 28 16 Naked Turns 46 | . . 46 Heaviest Build 13 | 13 13 13 Greatest Support 20 | 20 20 20 Greatest Overweight (x) 3 | . . 3 Average Overweight (x) . | . . . Largest Inventory Capacity 8 | 8 8 8 Average Capacity 7 | 7 8 7 Most Carried 5 | 4 4 5 Average Carried 3 | 2 3 4 Final Capacity 8 | 8 8 5 Final Carried 5 | 2 3 5 Class Distribution -------------------- 100% | Mutant Dominant Class ---------------- Mutant | -10/Materials Mutant | -9/Materials Resources | -11 -10 -9 ----------- Run | Yrd Mat Mat Matter Collected 260 | 236 24 . Remotely . | . . . Salvage Created 68 | . 68 . Parts 3 | . 3 . Haulers Intercepted . | . . . Recyclers Shooed . | . . . Parts Field Recycled . | . . . Retrieved Matter . | . . . Parts Self-Destructed . | . . . Prevented . | . . . Kills | -11 -10 -9 ------- Run | Yrd Mat Mat Combat Hostiles Destroyed 1 | . 1 . Guns 1 | . 1 . Classes Destroyed 2 | . 2 . Operator 1 | . 1 . Grunt 1 | . 1 . Best Kill Streak 1 | . 1 . Combat Bots Only 1 | . 1 . Max Kills in Single Turn 1 | . 1 . Gunslinging . | . . . Exploded . | . . . Melee . | . . . Uniques/NPCs Destroyed . | . . . Combat | -11 -10 -9 -------- Run | Yrd Mat Mat Hostile Shots Fired 119 | . 18 101 Missed 50 | . 9 41 Damage Taken 894 | . 100 794 Core 431 | . 24 407 Absorbed by Shields . | . . . Core Remaining (%) 95 | 100 90 . Volleys Fired 10 | . 5 5 Largest 2 | . 2 2 Hottest 90 | . 90 90 Shots Fired 20 | . 10 10 Gun 20 | . 10 10 Cannon . | . . . Launcher . | . . . Special . | . . . Kinetic . | . . . Thermal 20 | . 10 10 Explosive . | . . . Electromagnetic . | . . . Robot Hit Streak 5 | . 5 1 Robot Miss Streak 9 | . 1 9 Penetration Max . | . . . Secondary Targets . | . . . Shots Hit Robots 9 | . 8 1 Core Hits 5 | . 4 1 Critical Kills . | . . . Critical Parts Destroyed . | . . . Critical Strikes . | . . . Melee Attacks . | . . . Impact . | . . . Slashing . | . . . Piercing . | . . . Sneak Attacks . | . . . Combat Hostiles . | . . . Follow-up Attacks . | . . . Damage Inflicted 136 | . 95 41 Guns 107 | . 95 12 Cannons . | . . . Explosions . | . . . Melee . | . . . Ramming 29 | . . 29 Kinetic . | . . . Thermal 107 | . 95 12 Explosive . | . . . Electromagnetic . | . . . Impact . | . . . Slashing . | . . . Piercing . | . . . Highest Corruption . | . . . Average Corruption . | . . . Corruption Purged . | . . . Corruption Blocked . | . . . Overload Shots . | . . . Overflow Damage . | . . . Projectiles . | . . . Explosions . | . . . Melee . | . . . Knockbacks . | . . . Impact . | . . . Kinetic . | . . . Secondary . | . . . Self-Inflicted Damage 11 | . . 11 Shots . | . . . Rammed 6 | . . 6 Targets Rammed 7 | . . 7 Kicked 1 | . . 1 Crushed . | . . . Highest Temperature 72 | . 72 21 Average Temperature 22 | . 29 13 Received Heat Transfer 396 | . 54 342 Siege Activations . | . . . Robots Corrupted . | . . . Combat Hostiles . | . . . Parts Fried . | . . . Impact Corruptions . | . . . Robots Melted . | . . . Combat Hostiles . | . . . Parts Melted 1 | . 1 . Heat Transferred 261 | . 236 25 Parts Sabotaged . | . . . Parts Stolen . | . . . Parts Stripped . | . . . Power Chain Reactions . | . . . Alert | -11 -10 -9 ------- Run | Yrd Mat Mat Peak Influence 359 | . 65 359 Initial 27 | . . 27 Average 81 | . 20 116 Maximum Alert Level 1 | . . 1 Low Security (%) 89 | 100 100 84 Level 1 10 | . . 15 Level 2 . | . . . Level 3 . | . . . Level 4 . | . . . Level 5 . | . . . High Security . | . . . Max Security . | . . . Squads Dispatched 8 | . 2 6 Investigation 4 | . 1 3 Extermination . | . . . Reinforcement 4 | . 1 3 Assault . | . . . Garrison . | . . . Intercept . | . . . Searches Triggered . | . . . Construction Impeded . | . . . Haulers Reinforced . | . . . Active Scanning Responses . | . . . Cargo Convoy Interrupts . | . . . Stealth | -11 -10 -9 --------- Run | Yrd Mat Mat Distress Signals 2 | . . 2 Communications Jammed . | . . . Distress Signals . | . . . Times Spotted 32 | . 4 28 Peak Tracking Total 13 | . 2 13 Tactical Retreats 6 | . . 6 Traps | -11 -10 -9 ------- Run | Yrd Mat Mat Traps Triggered 1 | . . 1 Indirectly . | . . . Trap Hack Attempts . | . . . Triggered . | . . . Disarmed . | . . . Reprogrammed . | . . . Reused . | . . . Traps Extracted . | . . . Installed . | . . . Triggered . | . . . Machines | -11 -10 -9 ---------- Run | Yrd Mat Mat Machines Disabled . | . . . Max in Single Turn . | . . . Machines Repaired . | . . . Machines Dismantled . | . . . Machines Sabotaged 1 | . . 1 Overloaded Fab Kills . | . . . Hacking | -11 -10 -9 --------- Run | Yrd Mat Mat Machines Accessed 4 | . 1 3 Terminals 4 | . 1 3 Fabricators . | . . . Repair Stations . | . . . Recycling Units . | . . . Scanalyzers . | . . . Garrison Access . | . . . Total Hacks 9 | . 2 7 Successful 2 | . . 2 Failed 7 | . 2 5 Catastrophic 6 | . 2 4 Database Lockouts . | . . . Manual 11 | . 2 9 Terminals 9 | . 2 7 Fabricators . | . . . Repair Stations . | . . . Recycling Units . | . . . Scanalyzers . | . . . Garrison Access . | . . . Terminal Hacks 1 | . . 1 Zone Layout 1 | . . 1 Fabricator Hacks . | . . . Repair Station Hacks . | . . . Recycling Unit Hacks . | . . . Scanalyzer . | . . . Garrison Access Hacks . | . . . Unauthorized Hacks 1 | . . 1 Terminals 1 | . . 1 Sabotage 1 | . . 1 Fabricators . | . . . Repair Stations . | . . . Recycling Units . | . . . Scanalyzers . | . . . Garrison Access . | . . . Data Cores Recovered . | . . . Used . | . . . Hacking Detections 4 | . 1 3 Full Trace Events 2 | . 1 1 Feedback Events . | . . . Feedback Blocked . | . . . Robot Schematics Acquired . | . . . Robots Built . | . . . Authchips . | . . . Time . | . . . Total Robot Build Rating . | . . . Part Schematics Acquired . | . . . Parts Built . | . . . Authchips . | . . . Time . | . . . Total Part Build Rating . | . . . Parts Repaired . | . . . Time . | . . . Parts Recycled . | . . . Recycled Matter . | . . . Retrieved Matter . | . . . Retrieved Components . | . . . Parts Scanalyzed . | . . . Part Schematics Acquired . | . . . Parts Damaged . | . . . Bothacking | -11 -10 -9 ------------ Run | Yrd Mat Mat Used RIF Installer . | . . . Robots Hacked . | . . . Non-combat . | . . . Combat . | . . . Robot Hacks Applied . | . . . Relay Couplers Released . | . . . Fabnet Peak Effective % . | . . . Robots Rewired . | . . . Allies Hacked . | . . . Hacks Repelled . | . . . Allies | -11 -10 -9 -------- Run | Yrd Mat Mat Total Allies . | . . . Largest Group . | . . . Highest-Rated Group . | . . . Highest-Rated Ally . | . . . Total Orders . | . . . Ally Attacks . | . . . Total Damage . | . . . Kills . | . . . Allies Corrupted . | . . . Allies Melted . | . . . Intel | -11 -10 -9 ------- Run | Yrd Mat Mat Robot Analysis Total . | . . . Derelict Logs Recovered . | . . . Drone Launches . | . . . Drone Recoveries . | . . . Exploration | -11 -10 -9 ------------- Run | Yrd Mat Mat Turns Passed 576 | 68 125 383 Spaces Moved 478 | 54 90 334 Core 131 | 16 . 115 Treads . | . . . Legs 347 | 38 90 219 Wheels . | . . . Hover . | . . . Flight . | . . . Fastest Speed 50 | 50 120 50 Average Speed 101 | 99 120 97 Slowest Speed 200 | 120 120 200 Overloaded Moves . | . . . Propulsion Burnouts . | . . . Robots Hopped . | . . . Cave-ins Triggered . | . . . Exploration Rate (%) 23 | 4 15 52 Regions Visited 2 Branch Regions . Pre-discovered Areas . | . . . Known Exits Taken . | . . . Unknown Exits Taken 2 | 1 1 . Scrap Searched . | . . . Spaces Dug . | . . . Terrain Destroyed . | . . . Melee . | . . . Projectile . | . . . AOE . | . . . Terrain Rammed . | . . . Walls Destroyed . | . . . Machines Disabled . | . . . Actions | -11 -10 -9 --------- Run | Yrd Mat Mat Total 546 | 68 97 381 Wait 33 | 1 . 32 Move 476 | 53 89 334 Hop . | . . . Pick Up 12 | 8 2 2 Fast Attach . | . . . Attach 7 | 6 1 . Detach . | . . . Swap . | . . . Drop 1 | . . 1 Fire 10 | . 5 5 Melee . | . . . Ram 6 | . . 6 Kick 1 | . . 1 Crush . | . . . Escape Stasis . | . . . Rewire . | . . . Trap . | . . . Miscellaneous . | . . . Route ------- -11/Scrapyard -10/Materials -9/Materials History --------- Turn | Location | Event 3 | -11/Scrapyard | Discovered new exit (range 15) 69 | -11/Scrapyard | Entered Materials 177 | -10/Materials | Discovered new exit (range 15) 194 | -10/Materials | Entered another Materials area 194 | -9/Materials | Evolved 2 slots: Utility x2 301 | -9/Materials | Build established: Mutant 496 | -9/Materials | Core integrity fell below 50% 516 | -9/Materials | Lost 5 parts (1p2n2w) 573 | -9/Materials | Core integrity fell below 20% 577 | -9/Materials | Destroyed by G-34 Mercenary with Small Laser Last Messages --------------- reinforcements. ALERT: Hostiles spotted, dispatching reinforcements to Terminal M011. O-16 Technician locks terminal. Connecting with Terminal... >>Force(Sabotage) SYSTEM_VULNERABLE[Neutrino Reactor] NETWORK_OVERLOAD COORDINATES_RETRIEVED ALERT: Suspicious activity at Terminal M003. Dispatching Investigation squad. Connecting with Terminal... ALERT: Suspicious activity at Terminal M012. Dispatching Investigation squad. Hacking Suite destroyed. Slammed into B-36 Bruiser. Slammed into Y-45 Defender. Slammed into G-34 Mercenary. Critical hit (Burn: +37). Slammed into Y-45 Defender. Map ----- +----------------------------------------------------+ | ?????????????????????????????# # | | ?????????????????????????????# + "" | | ?????????????????????????????# ########## # Y" | | ?????????????????????????????# ??????????# # "" | | ?????????????????????????????#????????????# # | | ??????????????????????????????????????????# ##+### | | ??????????????????????????????????????????# #?? | | ??????????????????????????????????????????# #?? | | ##????????????????????????????????????????# #?? | | #????????????????????????#####+########### #?? | | #????????????????????????# + #?? | | #????????????????????????# # ##? | | #????????????????????????# # "#? | | #????????????????????????# / T#? | | #????????????????????????+ #### """ "#? | | #????????????????????????# #??# """ ##? | | #????????????????????????# #??# """ #?? | | #######??????????????????# #??# #?? | | ### ??????????##### #########+##??# #?? | | ??????? #???# #?? | | ??????? #???##"T"##+### | | ???????????###########+## #????#"""## T # | | ### ??????????????# Y ## #????###### # | | #### #??????????????# """""## #?????????# # | | # #??????????????# """""# ?????????# # | | "" # #??????????????# @"""""# ????????# # | | Y" + #??????????????# """""# ???????# # | | "" # #??????????????#] g"""""# ###??????# # | | # #??????????????# b """""######????????##### | | #### #??????????????# g"""""#?????????????????? | | # ??????????????# YgY%%% #?????????????????? | | # ??????????????##########?????????????????? | | # ?????????????????????????????????????????? | | " + ?????????????????????????????????????????? | | " # ?????????????????????????????????????????? | | ?????????????????????????????????????????????????? | | ?????????????????????????????????????????????????? | | ?????????????????????????????????????????????????? | | ?????????????????????????????????????????????????? | | ?????????????????????????????????????????????????? | | ?????????????????????????????????????????????????? | | ?????????????????????????????????????????????????? | | ?????????????????????????????????????????????????? | | ?????????????????????????????????????????????????? | | ?????????????????????????????????????????????????? | | | | | | | | | | | +----------------------------------------------------+ Best States ------------- Heat Dissipation 28 Energy Generation 10 Energy Capacity 250 Matter Stores 300 Matter Capacity 300 Sight Range 16 Terrain Scan Density 10 Evasion (%) 55 Offensive Hacking 10 Item Schematics ----------------- None Robot Schematics ------------------ None Fabricated ------------ Nothing Alien Tech Used ----------------- None Achievements -------------- None Challenges ------------ None Game ------ Seed MappingAlertMatter Manual? 0 Play Time 00:11:08 Cumulative 16.6 hours Start 2024.07.06 @ 22:38:27 End 2024.07.06 @ 22:45:56 Sessions 1 Manual Loads 0 Difficulty Rogue Special Mode None Game No. 48 Rogue 48 Adventurer 0 Explorer 0 Win Type - Total 0 Types 0/0/0/0/0/0/0/0/0 Lore% 20 Gallery% 26 Achievement% 21 Wizard Run 0 Options --------- Layout 2 ASCII 0 Keyboard 0 Movement Numpad Keybinds 0 Fullscreen 1 Font 24/Smallcaps Map View 50x44 Zoom Use 0% Tactical HUD 0 Map Filters NONE Filters NONE Steam 1 RUN: 8d1c9b7c-5edc-4d61-bb8d-255ff1370345